[Event "Late-Titled-Tuesday-Blitz-October-24-2023"]
[Site "Chess.com"]
[Date "2023.10.24"]
[Round "1"]
[White "Bauman_Guy"]
[Black "scandalgod"]
[Result "1-0"]
[WhiteElo "2912"]
[BlackElo "2508"]
[TimeControl "180+1"]
[EndTime "14:08:16 PDT"]
[Termination "Bauman_Guy won by resignation"]

1. e4 {[%clk 0:03:00.9]} 1... e5 {[%clk 0:02:59.6]} 2. Nf3 {[%clk 0:03:00.7]}
2... Nc6 {[%clk 0:02:55.3]} 3. Bb5 {[%clk 0:03:00.5]} 3... a6 {[%clk 0:02:51.9]}
4. Ba4 {[%clk 0:03:00.3]} 4... d6 {[%clk 0:02:52.5]} 5. c3 {[%clk 0:03:00]} 5...
Bd7 {[%clk 0:02:53.1]} 6. O-O {[%clk 0:02:58.1]} 6... Nge7 {[%clk 0:02:53.4]} 7.
d4 {[%clk 0:02:52.8]} 7... Ng6 {[%clk 0:02:53.9]} 8. d5 {[%clk 0:02:47]} 8...
Nb8 {[%clk 0:02:52.2]} 9. c4 {[%clk 0:02:46.4]} 9... Be7 {[%clk 0:02:51.6]} 10.
Nc3 {[%clk 0:02:45.5]} 10... O-O {[%clk 0:02:51.1]} 11. Be3 {[%clk 0:02:45.3]}
11... f5 {[%clk 0:02:51]} 12. Bxd7 {[%clk 0:02:41.6]} 12... Nxd7 {[%clk
0:02:51.9]} 13. exf5 {[%clk 0:02:40.7]} 13... Rxf5 {[%clk 0:02:52.4]} 14. Nd2
{[%clk 0:02:38.8]} 14... Qf8 {[%clk 0:02:48.8]} 15. Nde4 {[%clk 0:02:37]} 15...
Nf4 {[%clk 0:02:48.4]} 16. Bxf4 {[%clk 0:02:34.3]} 16... Rxf4 {[%clk 0:02:47.6]}
17. g3 {[%clk 0:02:32.2]} 17... Rf5 {[%clk 0:02:44.7]} 18. Qg4 {[%clk
0:02:21.9]} 18... Qf7 {[%clk 0:02:38.5]} 19. f3 {[%clk 0:02:04.9]} 19... Rf8
{[%clk 0:02:29.9]} 20. Rf2 {[%clk 0:02:02.1]} 20... Nb6 {[%clk 0:02:15.9]} 21.
b3 {[%clk 0:01:57.9]} 21... Rxf3 {[%clk 0:02:08.6]} 22. Raf1 {[%clk 0:01:53.4]}
22... Rxf2 {[%clk 0:01:59.1]} 23. Rxf2 {[%clk 0:01:53.2]} 23... Qg6 {[%clk
0:01:59.2]} 24. Rxf8+ {[%clk 0:01:49.7]} 24... Bxf8 {[%clk 0:01:59.3]} 25. Qh4
{[%clk 0:01:46.1]} 25... h6 {[%clk 0:01:43.2]} 26. Qd8 {[%clk 0:01:42.4]} 26...
Qf7 {[%clk 0:01:41.2]} 27. Kg2 {[%clk 0:01:36.5]} 27... Qd7 {[%clk 0:01:28.6]}
28. Qb8 {[%clk 0:01:34.7]} 28... Qc8 {[%clk 0:01:28.4]} 29. Qa7 {[%clk
0:01:26.9]} 29... Nd7 {[%clk 0:01:25]} 30. b4 {[%clk 0:01:03.9]} 30... Be7
{[%clk 0:00:55.3]} 31. Qe3 {[%clk 0:00:43.8]} 31... Nf6 {[%clk 0:00:48.3]} 32.
Qf3 {[%clk 0:00:40.7]} 32... Qd7 {[%clk 0:00:33]} 33. h4 {[%clk 0:00:39.4]}
33... c6 {[%clk 0:00:31.4]} 34. h5 {[%clk 0:00:34.3]} 34... Nh7 {[%clk
0:00:22.6]} 35. a4 {[%clk 0:00:27.9]} 35... Bg5 {[%clk 0:00:19.1]} 36. dxc6
{[%clk 0:00:14.8]} 36... bxc6 {[%clk 0:00:18.7]} 37. b5 {[%clk 0:00:15.1]} 37...
axb5 {[%clk 0:00:16.9]} 38. axb5 {[%clk 0:00:15.5]} 38... cxb5 {[%clk
0:00:15.8]} 39. Nxb5 {[%clk 0:00:15.8]} 39... Be7 {[%clk 0:00:14.5]} 40. Nexd6
{[%clk 0:00:12.8]} 40... Bxd6 {[%clk 0:00:11.6]} 41. Qd5+ {[%clk 0:00:12.2]}
41... Kh8 {[%clk 0:00:11.4]} 42. Nxd6 {[%clk 0:00:11.8]} 42... Nf6 {[%clk
0:00:06.5]} 43. Nf7+ {[%clk 0:00:04]} 43... Kh7 {[%clk 0:00:06.7]} 44. Qxd7
{[%clk 0:00:03.2]} 44... Nxd7 {[%clk 0:00:07.6]} 45. Kf3 {[%clk 0:00:03.1]}
45... Kg8 {[%clk 0:00:07.6]} 46. Nd6 {[%clk 0:00:02.8]} 46... Kf8 {[%clk
0:00:07.9]} 47. Ke4 {[%clk 0:00:03.3]} 47... Ke7 {[%clk 0:00:08.5]} 48. Nf5+
{[%clk 0:00:03.7]} 48... Kf6 {[%clk 0:00:08.6]} 49. Ne3 {[%clk 0:00:04.1]} 49...
Nc5+ {[%clk 0:00:08.7]} 50. Kd5 {[%clk 0:00:04.4]} 50... Ne6 {[%clk 0:00:09.1]}
51. c5 {[%clk 0:00:04.3]} 51... Nc7+ {[%clk 0:00:07.3]} 52. Kd6 {[%clk
0:00:04.7]} 52... Ne8+ {[%clk 0:00:06.7]} 53. Kd7 {[%clk 0:00:04.8]} 53... Kf7
{[%clk 0:00:07.1]} 54. c6 {[%clk 0:00:04.7]} 54... Nf6+ {[%clk 0:00:08]} 55. Kd6
{[%clk 0:00:04.2]} 55... Ne8+ {[%clk 0:00:05.2]} 56. Kxe5 {[%clk 0:00:03.6]}
56... Ke7 {[%clk 0:00:05.4]} 57. Nf5+ {[%clk 0:00:03.8]} 57... Kf7 {[%clk
0:00:05.6]} 58. Nd6+ {[%clk 0:00:03.9]} 58... Nxd6 {[%clk 0:00:05.2]} 59. Kxd6
{[%clk 0:00:04.8]} 1-0

[Event "Late-Titled-Tuesday-Blitz-October-24-2023"]
[Site "Chess.com"]
[Date "2023.10.24"]
[Round "1"]
[White "ItalianMachine"]
[Black "Rodalquilar"]
[Result "0-1"]
[WhiteElo "2423"]
[BlackElo "2747"]
[TimeControl "180+1"]
[EndTime "14:08:16 PDT"]
[Termination "Rodalquilar won by resignation"]

1. Nf3 {[%clk 0:02:57.6]} 1... d5 {[%clk 0:02:59.9]} 2. d4 {[%clk 0:02:54.1]}
2... Nf6 {[%clk 0:03:00.1]} 3. c4 {[%clk 0:02:54.1]} 3... e6 {[%clk 0:02:59.5]}
4. Nc3 {[%clk 0:02:54.7]} 4... a6 {[%clk 0:02:57.6]} 5. e3 {[%clk 0:02:47.6]}
5... b6 {[%clk 0:02:53.7]} 6. cxd5 {[%clk 0:02:44.1]} 6... exd5 {[%clk
0:02:53.9]} 7. Bd3 {[%clk 0:02:43]} 7... Bb7 {[%clk 0:02:54.3]} 8. O-O {[%clk
0:02:42.2]} 8... Bd6 {[%clk 0:02:53.2]} 9. Re1 {[%clk 0:02:39.9]} 9... O-O
{[%clk 0:02:52.7]} 10. e4 {[%clk 0:02:39.9]} 10... dxe4 {[%clk 0:02:52.4]} 11.
Nxe4 {[%clk 0:02:40.8]} 11... Nxe4 {[%clk 0:02:52.8]} 12. Bxe4 {[%clk 0:02:41]}
12... Bxe4 {[%clk 0:02:53.3]} 13. Rxe4 {[%clk 0:02:41.8]} 13... Nd7 {[%clk
0:02:53.7]} 14. Qe2 {[%clk 0:02:41]} 14... Re8 {[%clk 0:02:48.1]} 15. Bg5 {[%clk
0:02:38.1]} 15... Rxe4 {[%clk 0:02:42.7]} 16. Qxe4 {[%clk 0:02:37.2]} 16... Qe8
{[%clk 0:02:43]} 17. Qc6 {[%clk 0:02:29.5]} 17... Nf8 {[%clk 0:02:40.1]} 18. Qc2
{[%clk 0:02:14.8]} 18... Qb5 {[%clk 0:02:27]} 19. Re1 {[%clk 0:01:59.9]} 19...
Re8 {[%clk 0:02:16.8]} 20. Rxe8 {[%clk 0:01:53.7]} 20... Qxe8 {[%clk 0:02:17.7]}
21. h3 {[%clk 0:01:50.4]} 21... Qb5 {[%clk 0:02:15.3]} 22. Bh4 {[%clk
0:01:43.2]} 22... Qd5 {[%clk 0:02:10.9]} 23. Bg3 {[%clk 0:01:41.1]} 23... Bxg3
{[%clk 0:02:05.1]} 24. fxg3 {[%clk 0:01:40.8]} 24... Ne6 {[%clk 0:02:05.6]} 25.
Qa4 {[%clk 0:01:35.1]} 25... Qb5 {[%clk 0:01:45.2]} 26. Qxb5 {[%clk 0:01:35.1]}
26... axb5 {[%clk 0:01:46.1]} 27. Kf2 {[%clk 0:01:29]} 27... Kf8 {[%clk
0:01:42.8]} 28. Ke3 {[%clk 0:01:28.6]} 28... Ke7 {[%clk 0:01:43.2]} 29. d5
{[%clk 0:01:21.3]} 29... Nc5 {[%clk 0:01:35.9]} 30. Kd4 {[%clk 0:01:21.2]} 30...
Nd7 {[%clk 0:01:27.4]} 31. Ng5 {[%clk 0:01:11.2]} 31... Nf6 {[%clk 0:01:18.9]}
32. Ke5 {[%clk 0:01:08.4]} 32... h6 {[%clk 0:01:12]} 33. Nf3 {[%clk 0:01:05.6]}
33... Nd7+ {[%clk 0:01:10.8]} 34. Kd4 {[%clk 0:00:58]} 34... Kd6 {[%clk
0:01:11.2]} 35. Nd2 {[%clk 0:00:49.4]} 35... f5 {[%clk 0:00:25.7]} 36. Nf1
{[%clk 0:00:44.6]} 36... Nf6 {[%clk 0:00:20.2]} 37. Ne3 {[%clk 0:00:44.9]} 37...
g6 {[%clk 0:00:20.7]} 38. g4 {[%clk 0:00:44.7]} 38... f4 {[%clk 0:00:18.7]} 39.
Nc2 {[%clk 0:00:39.5]} 39... Nxd5 {[%clk 0:00:18.5]} 40. Ke4 {[%clk 0:00:40.2]}
40... g5 {[%clk 0:00:15.4]} 41. Nd4 {[%clk 0:00:39.8]} 41... Kc5 {[%clk
0:00:09.2]} 42. Ne6+ {[%clk 0:00:38.5]} 42... Kd6 {[%clk 0:00:04.6]} 43. Nd4
{[%clk 0:00:38.2]} 43... Nb4 {[%clk 0:00:04.4]} 44. a3 {[%clk 0:00:35.9]} 44...
Nc6 {[%clk 0:00:02.1]} 45. Nxb5+ {[%clk 0:00:35.4]} 45... Kd7 {[%clk 0:00:02]}
46. Kf5 {[%clk 0:00:34.9]} 46... Ne7+ {[%clk 0:00:01.6]} 47. Kf6 {[%clk
0:00:34.7]} 47... Nd5+ {[%clk 0:00:02.2]} 48. Kg6 {[%clk 0:00:34.9]} 48... Ne3
{[%clk 0:00:03.1]} 49. Kxh6 {[%clk 0:00:35.3]} 49... Nxg2 {[%clk 0:00:03.7]} 50.
Nd4 {[%clk 0:00:21.4]} 50... c5 {[%clk 0:00:04]} 51. Nf3 {[%clk 0:00:21.3]}
51... Nh4 {[%clk 0:00:04.6]} 52. Nxg5 {[%clk 0:00:12.9]} 52... f3 {[%clk
0:00:04.5]} 53. Ne4 {[%clk 0:00:13.5]} 53... Ke6 {[%clk 0:00:04.7]} 54. Kg5
{[%clk 0:00:13.7]} 54... Ke5 {[%clk 0:00:05.4]} 55. Nf2 {[%clk 0:00:13.4]} 55...
Ng2 {[%clk 0:00:06]} 56. Kg6 {[%clk 0:00:13.3]} 56... Kf4 {[%clk 0:00:06]} 57.
h4 {[%clk 0:00:13.3]} 57... Ke3 {[%clk 0:00:06.6]} 58. Nh3 {[%clk 0:00:13.4]}
58... Nxh4+ {[%clk 0:00:07]} 59. Kf6 {[%clk 0:00:13.1]} 59... f2 {[%clk
0:00:06.8]} 60. Nxf2 {[%clk 0:00:13.8]} 60... Kxf2 {[%clk 0:00:07.3]} 61. g5
{[%clk 0:00:14.7]} 61... Ke3 {[%clk 0:00:07.9]} 62. g6 {[%clk 0:00:15]} 62...
Nxg6 {[%clk 0:00:07.1]} 63. Kxg6 {[%clk 0:00:15.9]} 63... Kd3 {[%clk 0:00:07.7]}
64. Kf5 {[%clk 0:00:16.6]} 64... Kc2 {[%clk 0:00:08.3]} 65. Ke5 {[%clk
0:00:17.3]} 65... Kxb2 {[%clk 0:00:08.9]} 66. Kd5 {[%clk 0:00:18.2]} 66... Kxa3
{[%clk 0:00:08.8]} 67. Kc6 {[%clk 0:00:17.1]} 67... c4 {[%clk 0:00:09]} 68. Kxb6
{[%clk 0:00:18]} 68... c3 {[%clk 0:00:09.6]} 69. Kc5 {[%clk 0:00:18.8]} 69... c2
{[%clk 0:00:10.2]} 70. Kd5 {[%clk 0:00:19.7]} 70... c1=Q {[%clk 0:00:10.8]} 71.
Ke5 {[%clk 0:00:20.6]} 71... Qc6 {[%clk 0:00:11]} 0-1

[Event "Late-Titled-Tuesday-Blitz-October-24-2023"]
[Site "Chess.com"]
[Date "2023.10.24"]
[Round "1"]
[White "pooh2012"]
[Black "Karacsonyi_Gellert"]
[Result "1-0"]
[WhiteElo "2447"]
[BlackElo "2744"]
[TimeControl "180+1"]
[EndTime "14:08:24 PDT"]
[Termination "pooh2012 won by resignation"]

1. d4 {[%clk 0:02:59.3]} 1... Nf6 {[%clk 0:02:59.7]} 2. Bf4 {[%clk 0:02:53.7]}
2... d5 {[%clk 0:02:59.4]} 3. e3 {[%clk 0:02:52.3]} 3... c5 {[%clk 0:02:59.5]}
4. c3 {[%clk 0:02:50.1]} 4... Nc6 {[%clk 0:02:59.2]} 5. Nf3 {[%clk 0:02:47.9]}
5... Qb6 {[%clk 0:02:59.1]} 6. Qb3 {[%clk 0:02:43.9]} 6... c4 {[%clk 0:02:59.4]}
7. Qxb6 {[%clk 0:02:43]} 7... axb6 {[%clk 0:03:00.3]} 8. a3 {[%clk 0:02:37]}
8... Bf5 {[%clk 0:02:59.5]} 9. Nbd2 {[%clk 0:02:32.7]} 9... b5 {[%clk
0:02:58.1]} 10. Rc1 {[%clk 0:02:31.1]} 10... e6 {[%clk 0:02:57.1]} 11. Nh4
{[%clk 0:02:19]} 11... h6 {[%clk 0:02:57.2]} 12. Nxf5 {[%clk 0:02:17.7]} 12...
exf5 {[%clk 0:02:58.1]} 13. h4 {[%clk 0:02:12.2]} 13... Be7 {[%clk 0:02:54.6]}
14. Be2 {[%clk 0:02:03.4]} 14... O-O {[%clk 0:02:54.6]} 15. Bf3 {[%clk
0:01:57.8]} 15... Ne4 {[%clk 0:02:54]} 16. Ke2 {[%clk 0:01:54.8]} 16... g5
{[%clk 0:02:41.4]} 17. hxg5 {[%clk 0:01:48.7]} 17... hxg5 {[%clk 0:02:42.3]} 18.
Bh2 {[%clk 0:01:32]} 18... g4 {[%clk 0:02:42.7]} 19. Bxe4 {[%clk 0:01:30.5]}
19... fxe4 {[%clk 0:02:43.6]} 20. f3 {[%clk 0:01:26.4]} 20... f5 {[%clk
0:02:43.7]} 21. fxg4 {[%clk 0:01:22.5]} 21... fxg4 {[%clk 0:02:44.6]} 22. Bf4
{[%clk 0:01:22.1]} 22... Rf7 {[%clk 0:02:29.8]} 23. Rh5 {[%clk 0:01:20.8]} 23...
Rd8 {[%clk 0:02:23.5]} 24. Rch1 {[%clk 0:01:18.6]} 24... Bf6 {[%clk 0:02:24.2]}
25. Nf1 {[%clk 0:01:08.4]} 25... Ne7 {[%clk 0:02:24.7]} 26. Ng3 {[%clk
0:00:49.2]} 26... Rdf8 {[%clk 0:02:23.1]} 27. Nf5 {[%clk 0:00:48.1]} 27... Nxf5
{[%clk 0:02:15.7]} 28. Rxf5 {[%clk 0:00:49]} 28... Rd8 {[%clk 0:02:15.9]} 29.
Rhh5 {[%clk 0:00:47.4]} 29... b4 {[%clk 0:02:00.6]} 30. cxb4 {[%clk 0:00:40]}
30... Rc8 {[%clk 0:01:48.6]} 31. Kd2 {[%clk 0:00:35.7]} 31... c3+ {[%clk
0:01:32.6]} 32. bxc3 {[%clk 0:00:35.3]} 32... Ra8 {[%clk 0:01:33.5]} 33. Kc2
{[%clk 0:00:34.2]} 33... Rxa3 {[%clk 0:01:33.8]} 34. Kb2 {[%clk 0:00:34.2]}
34... Ra8 {[%clk 0:01:22.7]} 35. Rxd5 {[%clk 0:00:34.1]} 35... b6 {[%clk
0:01:23.3]} 36. Rd6 {[%clk 0:00:32.2]} 36... Bd8 {[%clk 0:01:19.3]} 37. Rg6+
{[%clk 0:00:30.3]} 37... Rg7 {[%clk 0:01:14.6]} 38. Rhh6 {[%clk 0:00:23.9]}
38... Ra7 {[%clk 0:01:04.8]} 39. Be5 {[%clk 0:00:23.5]} 39... Rxg6 {[%clk
0:00:59]} 40. Rxg6+ {[%clk 0:00:24.4]} 40... Kh7 {[%clk 0:00:54.1]} 41. Rxg4
{[%clk 0:00:23.7]} 41... Rf7 {[%clk 0:00:54.7]} 42. g3 {[%clk 0:00:19.5]} 42...
Rf2+ {[%clk 0:00:46.3]} 43. Kb3 {[%clk 0:00:19.7]} 43... b5 {[%clk 0:00:47.2]}
44. Rxe4 {[%clk 0:00:19.6]} 44... Rf1 {[%clk 0:00:47.9]} 45. Bf4 {[%clk
0:00:19.5]} 45... Rb1+ {[%clk 0:00:48.2]} 46. Kc2 {[%clk 0:00:19.8]} 46... Ra1
{[%clk 0:00:42.2]} 47. Re5 {[%clk 0:00:19.9]} 47... Kg6 {[%clk 0:00:35.1]} 48.
Rxb5 {[%clk 0:00:19.7]} 48... Kf7 {[%clk 0:00:35.9]} 49. c4 {[%clk 0:00:19.7]}
49... Ra3 {[%clk 0:00:34.7]} 50. Rb7+ {[%clk 0:00:18.3]} 50... Ke6 {[%clk
0:00:34.9]} 51. b5 {[%clk 0:00:18.4]} 51... Ba5 {[%clk 0:00:34]} 52. Kb2 {[%clk
0:00:18.2]} 52... Rd3 {[%clk 0:00:32.7]} 53. c5 {[%clk 0:00:18.1]} 53... Kd5
{[%clk 0:00:32.7]} 54. c6 {[%clk 0:00:17.2]} 54... Rd2+ {[%clk 0:00:32.4]} 55.
Kb3 {[%clk 0:00:15.6]} 55... Rd3+ {[%clk 0:00:32.9]} 56. Ka4 {[%clk 0:00:15.4]}
56... Bd8 {[%clk 0:00:27.8]} 57. c7 {[%clk 0:00:13.9]} 57... Be7 {[%clk
0:00:28]} 58. Ka5 {[%clk 0:00:06.1]} 58... Ra3+ {[%clk 0:00:22.5]} 59. Kb6
{[%clk 0:00:06.1]} 59... Bb4 {[%clk 0:00:23.4]} 60. Rb8 {[%clk 0:00:04.3]} 60...
Ba5+ {[%clk 0:00:11.5]} 61. Kb7 {[%clk 0:00:04.5]} 61... Bxc7 {[%clk 0:00:12.4]}
62. Bxc7 {[%clk 0:00:04.7]} 62... Rb3 {[%clk 0:00:13.3]} 63. b6 {[%clk
0:00:04.8]} 63... Ke6 {[%clk 0:00:14.2]} 64. Rd8 {[%clk 0:00:05.1]} 64... Ke7
{[%clk 0:00:14.5]} 65. Kc8 {[%clk 0:00:05.5]} 65... Rb1 {[%clk 0:00:15.4]} 66.
d5 {[%clk 0:00:05.7]} 66... Rc1 {[%clk 0:00:16.3]} 67. d6+ {[%clk 0:00:06.3]}
67... Ke6 {[%clk 0:00:16.8]} 68. b7 {[%clk 0:00:07.1]} 68... Rh1 {[%clk
0:00:16]} 69. b8=Q {[%clk 0:00:08]} 1-0

[Event "Late-Titled-Tuesday-Blitz-October-24-2023"]
[Site "Chess.com"]
[Date "2023.10.24"]
[Round "1"]
[White "Schattman"]
[Black "Elsa167"]
[Result "0-1"]
[WhiteElo "2502"]
[BlackElo "2897"]
[TimeControl "180+1"]
[EndTime "14:08:26 PDT"]
[Termination "Elsa167 won on time"]

1. Nf3 {[%clk 0:02:58.6]} 1... Nf6 {[%clk 0:03:00]} 2. g3 {[%clk 0:02:52.5]}
2... b6 {[%clk 0:02:57.9]} 3. Bg2 {[%clk 0:02:46.4]} 3... Bb7 {[%clk 0:02:58.4]}
4. c4 {[%clk 0:02:45.3]} 4... c5 {[%clk 0:02:58.3]} 5. Nc3 {[%clk 0:02:44.5]}
5... g6 {[%clk 0:02:57.2]} 6. O-O {[%clk 0:02:43.9]} 6... Bg7 {[%clk 0:02:57.5]}
7. Re1 {[%clk 0:02:44.5]} 7... O-O {[%clk 0:02:57.4]} 8. e4 {[%clk 0:02:44.4]}
8... Nc6 {[%clk 0:02:57.6]} 9. d3 {[%clk 0:02:33.6]} 9... d6 {[%clk 0:02:55.5]}
10. h3 {[%clk 0:02:33.5]} 10... Nd7 {[%clk 0:02:54.7]} 11. Bg5 {[%clk 0:02:25]}
11... h6 {[%clk 0:02:47.6]} 12. Bf4 {[%clk 0:02:22.9]} 12... Nde5 {[%clk
0:02:37.5]} 13. Nxe5 {[%clk 0:02:21.4]} 13... Nxe5 {[%clk 0:02:28.3]} 14. Qd2
{[%clk 0:02:10.5]} 14... Kh7 {[%clk 0:02:21.2]} 15. Be3 {[%clk 0:02:08.9]} 15...
Nc6 {[%clk 0:02:20.9]} 16. Ne2 {[%clk 0:02:06.7]} 16... e6 {[%clk 0:02:17.8]}
17. d4 {[%clk 0:02:06.9]} 17... cxd4 {[%clk 0:02:14.9]} 18. Nxd4 {[%clk
0:02:06.7]} 18... Nxd4 {[%clk 0:02:07.2]} 19. Bxd4 {[%clk 0:02:06.3]} 19... Qe7
{[%clk 0:02:07]} 20. Bxg7 {[%clk 0:01:56.5]} 20... Kxg7 {[%clk 0:02:07.9]} 21.
Red1 {[%clk 0:01:43.6]} 21... Rad8 {[%clk 0:02:02.5]} 22. a4 {[%clk 0:01:36.9]}
22... Qc7 {[%clk 0:01:50.3]} 23. b3 {[%clk 0:01:34.2]} 23... a5 {[%clk
0:01:49.6]} 24. Qd4+ {[%clk 0:01:19]} 24... e5 {[%clk 0:01:49.7]} 25. Qe3 {[%clk
0:01:13]} 25... Qc5 {[%clk 0:01:40]} 26. Qc3 {[%clk 0:00:50.2]} 26... f5 {[%clk
0:01:29.3]} 27. exf5 {[%clk 0:00:50.1]} 27... Bxg2 {[%clk 0:01:25.2]} 28. Kxg2
{[%clk 0:00:49.1]} 28... Rxf5 {[%clk 0:01:25.7]} 29. Ra2 {[%clk 0:00:41.2]}
29... Rdf8 {[%clk 0:01:24.7]} 30. Rdd2 {[%clk 0:00:41]} 30... Qc6+ {[%clk
0:01:21.6]} 31. Kg1 {[%clk 0:00:33.1]} 31... Rf3 {[%clk 0:01:21.8]} 32. Rd3
{[%clk 0:00:30.7]} 32... Qe4 {[%clk 0:01:16.2]} 33. Rxf3 {[%clk 0:00:19.5]}
33... Rxf3 {[%clk 0:01:15.6]} 34. Qc2 {[%clk 0:00:16.4]} 34... Rd3 {[%clk
0:00:47.8]} 35. Qe2 {[%clk 0:00:10.1]} 35... Qxe2 {[%clk 0:00:31.6]} 36. Rxe2
{[%clk 0:00:08.8]} 36... Rxb3 {[%clk 0:00:26.4]} 37. Rd2 {[%clk 0:00:08.2]}
37... Rb4 {[%clk 0:00:26.2]} 38. Rxd6 {[%clk 0:00:08.1]} 38... e4 {[%clk
0:00:21.8]} 39. Kf1 {[%clk 0:00:03.8]} 39... Rxa4 {[%clk 0:00:20.5]} 40. Rxb6
{[%clk 0:00:03.3]} 40... Rxc4 {[%clk 0:00:21.1]} 41. Ra6 {[%clk 0:00:02.1]}
41... a4 {[%clk 0:00:21.4]} 42. Ke2 {[%clk 0:00:02.7]} 42... g5 {[%clk
0:00:21.2]} 43. Ke3 {[%clk 0:00:03]} 43... h5 {[%clk 0:00:21.5]} 44. h4 {[%clk
0:00:03.1]} 44... gxh4 {[%clk 0:00:17.1]} 45. gxh4 {[%clk 0:00:03.5]} 45... Kf7
{[%clk 0:00:17.6]} 46. Kf4 {[%clk 0:00:03.9]} 46... e3+ {[%clk 0:00:13.5]} 47.
Kxe3 {[%clk 0:00:03.3]} 47... Rxh4 {[%clk 0:00:14.1]} 48. Rh6 {[%clk 0:00:02.6]}
48... Kg7 {[%clk 0:00:11]} 49. Ra6 {[%clk 0:00:02.3]} 49... Rb4 {[%clk
0:00:11.3]} 50. Kf3 {[%clk 0:00:02.4]} 50... Rb3+ {[%clk 0:00:11]} 51. Kf4
{[%clk 0:00:02.7]} 51... a3 {[%clk 0:00:11.7]} 52. f3 {[%clk 0:00:02.1]} 52...
Kf7 {[%clk 0:00:09.3]} 53. Kg5 {[%clk 0:00:01.8]} 53... Rxf3 {[%clk 0:00:08.9]}
54. Kxh5 {[%clk 0:00:02]} 54... Ke7 {[%clk 0:00:07.8]} 55. Kg4 {[%clk
0:00:02.1]} 55... Rb3 {[%clk 0:00:08.1]} 56. Kf4 {[%clk 0:00:02.4]} 56... Kd7
{[%clk 0:00:08.8]} 57. Ke4 {[%clk 0:00:02.9]} 57... Kc7 {[%clk 0:00:09.4]} 58.
Kd4 {[%clk 0:00:02.3]} 58... Kb7 {[%clk 0:00:10.1]} 59. Ra4 {[%clk 0:00:02.6]}
59... Rh3 {[%clk 0:00:10.8]} 60. Kc4 {[%clk 0:00:02.6]} 60... Rh4+ {[%clk
0:00:11.1]} 61. Kb3 {[%clk 0:00:02.5]} 61... Rxa4 {[%clk 0:00:12]} 62. Kxa4
{[%clk 0:00:02.6]} 62... a2 {[%clk 0:00:12.4]} 63. Kb3 {[%clk 0:00:02.9]} 63...
a1=Q {[%clk 0:00:13.3]} 0-1

[Event "Late-Titled-Tuesday-Blitz-October-24-2023"]
[Site "Chess.com"]
[Date "2023.10.24"]
[Round "1"]
[White "Arash_Tahbaz"]
[Black "ArturoCaceres"]
[Result "1-0"]
[WhiteElo "2895"]
[BlackElo "2500"]
[TimeControl "180+1"]
[EndTime "14:08:27 PDT"]
[Termination "Arash_Tahbaz won on time"]

1. Nf3 {[%clk 0:02:57.5]} 1... c5 {[%clk 0:02:43.5]} 2. g3 {[%clk 0:02:58.4]}
2... d6 {[%clk 0:02:42.8]} 3. Bg2 {[%clk 0:02:54.7]} 3... Nc6 {[%clk 0:02:29.8]}
4. O-O {[%clk 0:02:55.6]} 4... Nf6 {[%clk 0:02:25.6]} 5. d4 {[%clk 0:02:54]}
5... cxd4 {[%clk 0:02:22.5]} 6. Nxd4 {[%clk 0:02:54.9]} 6... Bd7 {[%clk
0:02:23.1]} 7. c4 {[%clk 0:02:53.1]} 7... Nxd4 {[%clk 0:02:20.8]} 8. Qxd4 {[%clk
0:02:53]} 8... Bc6 {[%clk 0:02:21.6]} 9. Nc3 {[%clk 0:02:49.3]} 9... Bxg2 {[%clk
0:02:18.3]} 10. Kxg2 {[%clk 0:02:50.2]} 10... e6 {[%clk 0:02:18.9]} 11. b3
{[%clk 0:02:40.5]} 11... a6 {[%clk 0:02:18.6]} 12. Bb2 {[%clk 0:02:40.6]} 12...
Be7 {[%clk 0:02:18.2]} 13. Rad1 {[%clk 0:02:39.3]} 13... O-O {[%clk 0:02:18.2]}
14. Ne4 {[%clk 0:02:31.2]} 14... d5 {[%clk 0:01:57]} 15. cxd5 {[%clk 0:02:26.2]}
15... Qxd5 {[%clk 0:01:55]} 16. Qxd5 {[%clk 0:02:13]} 16... Nxd5 {[%clk
0:01:54.5]} 17. Nc3 {[%clk 0:01:58.4]} 17... Nxc3 {[%clk 0:01:53.6]} 18. Bxc3
{[%clk 0:01:59.3]} 18... Rfd8 {[%clk 0:01:53.1]} 19. Ba5 {[%clk 0:01:58.9]}
19... Rxd1 {[%clk 0:01:25.8]} 20. Rxd1 {[%clk 0:01:59.8]} 20... Bc5 {[%clk
0:01:25.9]} 21. b4 {[%clk 0:01:52.3]} 21... Bf8 {[%clk 0:01:14.5]} 22. a3 {[%clk
0:01:45.7]} 22... Rc8 {[%clk 0:01:11.5]} 23. Rd7 {[%clk 0:01:43.3]} 23... b5
{[%clk 0:01:04.3]} 24. Ra7 {[%clk 0:01:40.1]} 24... Rc6 {[%clk 0:01:04]} 25. Bc7
{[%clk 0:01:04.2]} 25... f6 {[%clk 0:01:02.2]} 26. Bf4 {[%clk 0:01:04]} 26...
Bd6 {[%clk 0:00:50.1]} 27. Bxd6 {[%clk 0:00:41.1]} 27... Rxd6 {[%clk 0:00:49.9]}
28. e3 {[%clk 0:00:41.6]} 28... h5 {[%clk 0:00:43]} 29. h4 {[%clk 0:00:36]}
29... Kh7 {[%clk 0:00:43.2]} 30. Kf3 {[%clk 0:00:35.9]} 30... Kh6 {[%clk
0:00:43.4]} 31. Ke4 {[%clk 0:00:35.6]} 31... Kg6 {[%clk 0:00:37.8]} 32. Kf4
{[%clk 0:00:28.9]} 32... Rc6 {[%clk 0:00:35.9]} 33. Kf3 {[%clk 0:00:28.5]} 33...
f5 {[%clk 0:00:33]} 34. Ra8 {[%clk 0:00:23.6]} 34... Kf6 {[%clk 0:00:31.5]} 35.
Ra7 {[%clk 0:00:23.7]} 35... Rd6 {[%clk 0:00:29.7]} 36. Ke2 {[%clk 0:00:20.5]}
36... e5 {[%clk 0:00:28.5]} 37. f3 {[%clk 0:00:10.6]} 37... g6 {[%clk
0:00:28.5]} 38. e4 {[%clk 0:00:10.6]} 38... f4 {[%clk 0:00:18.9]} 39. gxf4
{[%clk 0:00:10.9]} 39... exf4 {[%clk 0:00:19.8]} 40. Ra8 {[%clk 0:00:10.8]}
40... Ke5 {[%clk 0:00:16.4]} 41. Re8+ {[%clk 0:00:11.4]} 41... Re6 {[%clk
0:00:15.8]} 42. Rd8 {[%clk 0:00:09.2]} 42... Rd6 {[%clk 0:00:16.2]} 43. Re8+
{[%clk 0:00:07.2]} 43... Kd4 {[%clk 0:00:16.6]} 44. Rf8 {[%clk 0:00:07.2]} 44...
Rc6 {[%clk 0:00:14.6]} 45. Rxf4 {[%clk 0:00:05.8]} 45... Rc2+ {[%clk 0:00:14.5]}
46. Kf1 {[%clk 0:00:06.3]} 46... Ke3 {[%clk 0:00:13.3]} 47. Rf6 {[%clk 0:00:07]}
47... Ra2 {[%clk 0:00:06.8]} 48. e5 {[%clk 0:00:06.9]} 48... Kd4 {[%clk
0:00:05.2]} 49. e6 {[%clk 0:00:06.8]} 49... Ra1+ {[%clk 0:00:04.5]} 50. Kf2
{[%clk 0:00:07.3]} 50... Ra2+ {[%clk 0:00:03.7]} 51. Kf1 {[%clk 0:00:07.8]}
51... Ra1+ {[%clk 0:00:04.3]} 52. Kf2 {[%clk 0:00:08.1]} 52... Ra2+ {[%clk
0:00:04.8]} 53. Kg3 {[%clk 0:00:08.7]} 53... Re2 {[%clk 0:00:04.9]} 54. Kf4
{[%clk 0:00:09.3]} 54... Kd5 {[%clk 0:00:03.4]} 55. Rxg6 {[%clk 0:00:09.8]}
55... Re1 {[%clk 0:00:02.2]} 56. Kg3 {[%clk 0:00:04.8]} 56... Kd6 {[%clk
0:00:01.8]} 57. Kf2 {[%clk 0:00:05.1]} 57... Re5 {[%clk 0:00:01.7]} 58. f4
{[%clk 0:00:05.6]} 58... Re4 {[%clk 0:00:02.2]} 59. Kf3 {[%clk 0:00:06]} 59...
Kd5 {[%clk 0:00:02.9]} 60. Rg5+ {[%clk 0:00:05.7]} 60... Kd4 {[%clk 0:00:03]}
61. Re5 {[%clk 0:00:06.3]} 1-0